{"text_format":"1","workbook":"xlsx","n_sheets":3,"sheets":["Příjmy 2013","Výdaje 2013","Financování 2013"],"not_rendered":{"charts":0,"images":0,"macros":0,"external_links":0,"defined_names":0,"comments":0,"pivot_tables":0},"unopened":[],"bounds":{"document_bytes":16777216,"sheet_cells":100000,"rows_first":2000,"rows_last":500,"rows_between":2000,"halvings":0,"cell_chars":16384,"cell_head_chars":4096},"cells_cut":0,"cells_raw":0,"read":"whole","date_system":"1900"}

{"sheet":"Příjmy 2013","index":0,"n_rows":41,"n_cols":10,"rows_kept":41,"cut":false,"hidden":false,"merged":[[2,0,3,0],[0,1,0,7],[2,4,2,5],[4,2,4,4],[2,1,3,1],[2,2,3,2],[2,3,3,3]]}
[null,"Rozpočet Mikroregionu Krnovsko na rok 2013"]
["   Příjmy",null,"Příjmy"]
["ÚZ","§","Položka","Obsah","Obec",null,"Schválený rozpočet","Mimořádné příspěvky   1%      dotace    ROP, PRV","Rozpočtová změna","Rozpočet po změnách"]
[null,null,null,null,"počet obv.","Kč/obec","tis. Kč","tis. Kč","tis. Kč","tis. Kč"]
[null,"Pozn.:"," 30. VH odsouhlasila příspěvek obce ve výši na jednoho obv./rok: ",null,null,12]
[null,null,4121,"Neinvestiční dotace od obcí -celkem za obce",null,null," ",{"$f":"SUM(H7:H31)","v":145.5}]
[null,null,null,"  z toho   Bohušov",423,{"$f":"SUM(E7*F5)","v":5076}]
[null,null,null,"              Brantice",1329,{"$f":"SUM(E8*F5)","v":15948}]
[null,null,null,"              Býkov-Láryšov",154,{"$f":"SUM(E9*F5)","v":1848}]
[null,null,null,"              Čaková",303,{"$f":"SUM(E10*F5)","v":3636}]
[null,null,null,"              Dívčí Hrad",274,{"$f":"SUM(E11*F5)","v":3288}]
[null,null,null,"              Heřmanovice",371,{"$f":"SUM(E12*F5)","v":4452}]
[null,null,null,"              Hlinka",214,{"$f":"SUM(E13*F5)","v":2568}]
[null,null,null,"              Holčovice",716,{"$f":"SUM(E14*F5)","v":8592}]
[null,null,null,"              Hošťálkovy",579,{"$f":"SUM(E15*F5)","v":6948}]
[null,null,null,"              Janov",311,{"$f":"SUM(E16*F5)","v":3732}]
[null,null,null,"              Jindřichov",1362,{"$f":"SUM(E17*F5)","v":16344},null,24.3]
[null,null,null,"              Krasov",347,{"$f":"SUM(E18*F5)","v":4164}]
[null,null,null,"              Krnov",24658,{"$f":"SUM(E19*F5)","v":295896}]
[null,null,null,"              Lichnov",1090,{"$f":"SUM(E20*F5)","v":13080},null,24.2]
[null,null,null,"              Liptaň",475,{"$f":"SUM(E21*F5)","v":5700}]
[null,null,null,"              Město Albrechtice",3598,{"$f":"SUM(E22*F5)","v":43176},null,24.2]
[null,null,null,"              Osoblaha",1107,{"$f":"SUM(E23*F5)","v":13284},null,24.3]
[null,null,null,"              Petrovice",136,{"$f":"SUM(E24*F5)","v":1632}]
[null,null,null,"              Rusín",146,{"$f":"SUM(E25*F5)","v":1752}]
[null,null,null,"              Slezské Pavlovice",219,{"$f":"SUM(E26*F5)","v":2628}]
[null,null,null,"              Slezské Rudoltice",586,{"$f":"SUM(E27*F5)","v":7032}]
[null,null,null,"              Třemešná",906,{"$f":"SUM(E28*F5)","v":10872}]
[null,null,null,"              Úvalno",996,{"$f":"SUM(E29*F5)","v":11952},null,24.2]
[null,null,null,"              Vysoká",317,{"$f":"SUM(E30*F5)","v":3804}]
[null,null,null,"              Zátor",1199,{"$f":"SUM(E31*F5)","v":14388},null,24.3]
[null,null,null,null,41816,501792,501.8]
[null,null,4121,"Mimořádný příspěvek od obcí za projekt Modernizace veřejných prostranství",null,null,0]
[null,null,null,"40,12% z projektu (Hošťálkovy,Lichnov,Třemešná,Úvalno,Vysoká) 5x67000",null,null,335]
[null,null,4122,"Neinves.přijatý transfer od KÚ-doplatek  Poradenství,společné akce a propagace MRK"," "," ",229.5]
[null,null,4222,"Investiční přijatý transfer od KÚ-doplatek Modernizace veřejných prostranství",null,null,250]
[null,null,4122,"Fond mikroprojektů Euroregionu Praděd - příjem až v 2014",null,null,0]
[null,null,4122,"NIV transfer z KÚ na projekt 2013-2014 ( předpokládaný příjem 1. zálohy v 2013 )",null,null,200]
[null,null,4222,"IV transfér z KÚ -projekt 2013  ( předpokládáný příjem 1. zálohy v 2013 )",null,null,180]
[null,null,2141,"Příjmy z úroků"," "," ",6]
[null,null,null," Příjmy celkem"," "," ",{"$f":"SUM(G32:G40)","v":1702.3}]

{"sheet":"Výdaje 2013","index":1,"n_rows":25,"n_cols":9,"rows_kept":25,"cut":false,"hidden":false,"merged":[[0,0,0,7],[21,0,21,1],[4,0,5,0],[4,1,5,1],[4,2,5,2]]}
["Rozpočet Mikroregionu Krnovsko na rok 2013"]
[]
["Výdaje"]
[]
["§","Položka","Obsah","Schválený rozpočet","Rozpočtová změna","Rozpočet po změnách"]
[null,null,null,"tis. Kč","tis. Kč","tis. Kč"]
[3419,5169,"Hokejová liga - projekt (pronájem zimního stadionu )",94]
[3421,5339,"Žákovská liga ve stolním tenise",15]
[3429,5169,"Fond Mikroprojektu Euroregionu Praděd",250,null,null,"?"]
[6409,5137,"DKP",4]
[null,5139,"Materiál - kancelář. potřeby",60]
[null,5161,"Služby pošt",2]
[null,5162,"Služby telekomunikací",8]
[null,5163,"Služby peněžních ústavů - poplatky za BÚ",6]
[null,5164,"Pronájem kanceláře",24]
[null,5166,"Konzultační a poradenské služby, účetní služby",492]
[null,5168,"Služby zpracování dat - servis software, web stránky",8]
[null,5169,"Tiskové a propagační služby",160]
[null,5172,"Programové vybavení",8]
[null,5175,"Pohoštění ( SR+VH + oběd- školení účetních)",15]
[null,5362,"Platby daní a poplatků (FÚ)",1]
["Výdaje celkem",null,null,{"$f":"SUM(D7:D21)","v":1147}]
[]
[null,null,null,null,null,null,null,null," "]
[null,null,null,null,null,null,null,null," "]

{"sheet":"Financování 2013","index":2,"n_rows":29,"n_cols":6,"rows_kept":29,"cut":false,"hidden":false,"merged":[[7,0,7,2],[0,0,0,7],[4,2,5,2],[4,0,5,0],[4,1,5,1]]}
["Rozpočet Mikroregionu Krnovsko na rok 2013"]
[]
["Financování"]
[]
["§","Položka","Obsah","Schválený rozpočet","Rozpočtová změna","Rozpočet po změnách"]
[null,null,null,"tis. Kč","tis. Kč","tis. Kč"]
[null,8115,"Změna stavu krátkodobých prostředků",-555.29999999999995]
["Financování celkem",null,null,{"$f":"SUM(D7)","v":-555.29999999999995}]
[]
[]
[]
[]
[]
["Zpracovali:",null,"Rostislav Balner -manažer"]
[null,null,"Mgr.Michal Skalka - manažer"]
[null,null,"Latochová Zuzana, ekonomka MRK"]
["Dne:","2012-11-22"]
[]
[]
["Starosta obce, která je členem svazku, potvrzuje, že rozpočet MRK, byl projednán v OZ"]
["a zveřejněném na úřední desce ( v tištěné i elektronické podobě )."]
["Vyvěšen dne: "]
[]
["Sejmut dne:"]
["Sejmut dne:"]
[]
[]
[]
["Rozpočet schválen na valné hromadě Mikroregionu Krnovsko dne 13.12.2012 "]